fUSD/lending_fUSD_20240804
["ID","MTS","AMOUNT","RATE_DAILY","PERIOD"]
[334084930,1722751846306,-151.44121,0.000195,2]
[334084931,1722751846316,-151.0,0.000195,2]
[334084932,1722751846327,-151.0,0.000195,2]
[334084933,1722751846339,-151.0,0.000195,2]
[334084934,1722751846350,-425.784214,0.000195,2]
[334084935,1722751846362,-151.0,0.000195,2]
[334084936,1722751846372,-151.0,0.000195,2]
[334084937,1722751846383,-425.784214,0.000195,2]
[334084938,1722751846394,-151.0,0.000195,2]
[334084939,1722751846404,-151.0,0.000195,2]
[334084940,1722751846415,-324.876137,0.000195,2]
[334084941,1722751846425,-324.876137,0.000195,2]
[334084942,1722751846436,-1386.34810536,0.00019571,2]
[334084943,1722751846452,-176.230276,0.00019573,2]
[334084944,1722751846463,-5278.92500254,0.00019599,2]
[334084945,1722751846473,-176.07,0.00019627,2]
[334084946,1722751846484,-375.64573055,0.00019725,2]
[334084947,1722751846494,-155.0,0.00019725,2]
[334084948,1722751846504,-522.42518221,0.00019725,2]
[334084949,1722751846529,-306.57963143,0.00019725,2]
[334084950,1722751846540,-522.42518221,0.00019725,2]
[334084951,1722751846551,-203.44,0.0001985,2]
[334084952,1722751846563,-179.06601,0.00019888,2]
[334084953,1722751846574,-176.230276,0.00019888,2]
[334084954,1722751846585,-623.87590211,0.00019899,2]
[334084955,1722751846596,-155.0,0.00019899,2]
[334084956,1722751846609,-519.74577912,0.00019999,2]
[334084957,1722751846621,-414.53172395,0.00019999,2]
[334084958,1722751846632,-6288.50435063,0.0002,2]
[334084959,1722751846644,-258.32371232,0.0002,2]
[334084960,1722751846656,-155.0,0.0002,2]
[334084961,1722751846668,-150.0,0.0002,2]
[334084962,1722751846679,-155.0,0.0002,2]
[334084963,1722751846691,-1282.3416809,0.0002,2]
[334084964,1722751846704,-572.74506767,0.0002,2]
[334084965,1722751846715,-270.0,0.0002,7]
[334084966,1722751846727,-471.77080258,0.0002,2]
[334084967,1722751846738,-256.0,0.0002,2]
[334084968,1722751846749,-750.0,0.0002,2]
[334084969,1722751846761,-150.090759,0.0002,2]
[334084970,1722751846772,-1000.0,0.0002,2]
[334084971,1722751846784,-175.143646,0.0002,2]
[334084972,1722751846794,-600.0,0.00020047,2]
[334084973,1722751846805,-500.0,0.00020054,2]
[334084974,1722751846816,-320.0,0.00020071,2]
[334084975,1722751846827,-370.30384095,0.00020109,2]
[334084976,1722751846838,-370.30384095,0.00020109,2]
[334084977,1722751846849,-947.92262883,0.00020109,2]
[334084978,1722751846859,-2384.51677582,0.0002012,2]
[334084979,1722751846870,-526.23743645,0.0002012,2]
[334084980,1722751846880,-759.86827843,0.0002012,2]
[334084981,1722751846891,-500.0,0.00020151,2]
[334084982,1722751846902,-882.81880814,0.00020158,2]
[334084983,1722751846913,-1386.34810536,0.00020163,2]
[334084984,1722751846924,-300.0,0.00020191,2]
[334084985,1722751846935,-2023.34906436,0.00020222,2]
[334084986,1722751846946,-31021.87327674,0.00020289,2]
[334084987,1722751846957,-500.0,0.00020291,2]
[334084988,1722751846968,-602.103,0.00020316,2]
[334084989,1722751846978,-1233.35,0.00020316,2]
[334084990,1722751846989,-1135.0,0.00020316,2]
[334084991,1722751846999,-264.158,0.00020316,2]
[334084992,1722751847010,-507.41617533,0.00020368,2]
[334084993,1722751847021,-600.0467648,0.0002038,2]
[334084994,1722751847032,-500.0,0.00020412,2]
[334084995,1722751847043,-500.0,0.00020421,2]
[334084996,1722751847053,-155.0,0.00020439,2]
[334084997,1722751847064,-155.0,0.00020439,2]
[334084998,1722751847074,-367.38,0.00020447,2]
[334084999,1722751847084,-279.36,0.00020447,2]
[334085000,1722751847095,-600.0,0.0002046,2]
[334085001,1722751847106,-151.0,0.00020532,2]
[334085002,1722751847118,-327.59,0.00020533,2]
[334085003,1722751847128,-500.0,0.00020605,2]
[334085004,1722751847140,-600.0,0.00020677,2]
[334085005,1722751847150,-1386.34810536,0.00020756,2]
[334085006,1722751847161,-500.0,0.00020781,2]
[334085007,1722751847171,-175.143646,0.00020822,2]
[334085008,1722751847183,-165.072112,0.0002088,2]
[334085009,1722751847194,-2780.34439331,0.0002088,2]
[334085010,1722751847204,-6318.34758762,0.0002088,2]
[334085011,1722751847214,-414.51752762,0.00020899,2]
[334085012,1722751847226,-600.0,0.00020955,2]
[334085013,1722751847238,-11237.0,0.00020959,2]
[334085014,1722751847248,-579.0,0.00020959,2]
[334085015,1722751847260,-1976.7745837,0.00020965,2]
[334085016,1722751847270,-305.4128966,0.00020965,2]
[334085017,1722751847281,-3643.7015183,0.00020965,2]
[334085018,1722751847291,-1074.3382355,0.00020966,2]
[334085019,1722751847301,-405394.7393324,0.00020979,11]
[334085020,1722751847316,-2125.34602237,0.00020979,11]
[334085021,1722751847328,-1024.42347234,0.00020979,11]
[334085022,1722751847342,-1113.47106092,0.00020979,11]
[334085023,1722751847783,-414.51752762,0.00020899,2]
[334085024,1722751847794,-1577.63127087,0.00020979,11]
[334085025,1722751847806,-7376.95188826,0.00020979,11]
[334085026,1722751847819,-396.05309653,0.00020979,11]
[334085027,1722751847832,-3888.49741325,0.00020979,11]
[334085028,1722751847849,-6719.10625203,0.00020979,11]
[334085029,1722751847862,-2188.03763019,0.00020979,11]
[334085030,1722751847874,-315.51074077,0.00020979,11]
[334085031,1722751847903,-104476.36954694,0.00020979,11]
[334085032,1722751848059,-979.12038577,0.00020979,11]
[334085035,1722751848220,-23018.06022655,0.00020979,11]
[334085038,1722751848340,-900.0,0.00020979,11]
[334085039,1722751848352,-1061.26037856,0.00020979,11]
[334085040,1722751848364,-1066.32182804,0.00020979,11]
[334085041,1722751848377,-480.8506347,0.00020979,11]
[334085042,1722751848388,-680.84645496,0.00020979,11]
[334085043,1722751848399,-3926.88633819,0.00020979,11]
[334085044,1722751848411,-2734.9,0.00020979,11]
[334085047,1722751850209,-2648.9071262,0.00020979,11]
[334085048,1722751850616,-217.2,0.0001778,3]
[334085049,1722751850626,-519.74577912,0.00019899,2]
[334085050,1722751850636,-526.23743645,0.00020109,2]
[334085051,1722751850645,-4561.430415,0.00020979,11]
[334085052,1722751853225,-1000.01059594,0.00020979,11]
[334085053,1722751853236,-431.92877667,0.00020979,11]
[334085054,1722751853247,-313.99159286,0.00020979,11]
[334085055,1722751853269,-1082.16293103,0.00020979,11]
[334085056,1722751853280,-6134.45000001,0.00020979,11]
[334085057,1722751853291,-747.54487454,0.00020979,11]
[334085059,1722751993054,318.62,0.00026913,120]
[334085071,1722752655326,37631.55830109,0.00027,120]
[334085143,1722753032518,-250.0,0.0001,2]
[334085146,1722753032655,-48.03077756,0.0001,2]
[334085147,1722753032665,-151.49,0.0001099,2]
[334085148,1722753032674,-163.5819502,0.00010997,2]
[334085149,1722753032683,-290.17220677,0.00010999,2]
[334085150,1722753032692,-6596.9522091,0.00011,2]
[334085151,1722753032703,-3564.35805856,0.00011,2]
[334085153,1722753038410,-30388.90431921,0.00011,2]
[334085154,1722753039077,-1690.48326357,0.00011,2]
[334085155,1722753039246,-9902.55119582,0.00011,2]
[334085157,1722753039258,-853.66721617,0.00011,2]
[334085159,1722753039270,-60052.93892613,0.00011,2]
[334085160,1722753039281,-2208.23057587,0.00011,2]
[334085161,1722753039293,-957.17402379,0.00011,2]
[334085163,1722753040556,-379.9422459,0.00011,2]
[334085164,1722753040568,-687.79291592,0.00011,2]
[334085165,1722753040685,-39282.21591552,0.00011,2]
[334085166,1722753040697,-2947.85393998,0.00011,2]
[334085167,1722753040819,-6032.55630432,0.00011,2]
[334085168,1722753040832,-292.21671216,0.00011,2]
[334085169,1722753040846,-676.23,0.00011,2]
[334085170,1722753040953,-3054.19398321,0.00011,2]
[334085171,1722753042691,-254536.0,0.00011,2]
[334085182,1722753043421,-316.76366605,0.00011,2]
[334085183,1722753043459,-673.14206966,0.00011,2]
[334085184,1722753043590,-27908.50961047,0.00011,2]
[334085185,1722753043602,-1439.42946133,0.00011,2]
[334085186,1722753043634,-3898.14041674,0.00011,2]
[334085187,1722753043680,-3680.30187106,0.00011,2]
[334085188,1722753043820,-44781.60921649,0.00011,2]
[334088128,1722754231607,-938.0,0.0001089,2]
[334088129,1722754231617,-433.2501,0.000109,2]
[334088130,1722754231626,-588.54587212,0.000109,2]
[334088131,1722754231636,-165.072112,0.000109,2]
[334088132,1722754231645,-381.83913691,0.000109,2]
[334088133,1722754231654,-672.23664242,0.000109,2]
[334088134,1722754231664,-5644.18187,0.000109,2]
[334088135,1722754231673,-1853.56292888,0.000109,2]
[334088136,1722754231683,-155.54,0.00010944,2]
[334088138,1722754231692,-150.84,0.00010959,2]
[334088139,1722754231702,-754.21,0.00010959,2]
[334088141,1722754231711,-151.06328511,0.00010994,2]
[334088143,1722754231721,-41525.83344554,0.00010997,2]
[334088147,1722754231777,-643.659991,0.00010997,2]
[334088148,1722754231791,-421.75161424,0.00010997,2]
[334088149,1722754231803,-2057.53459913,0.00010997,2]
[334088150,1722754231843,-703.31240338,0.00010997,2]
[334088151,1722754231854,-435587.96597013,0.00010997,2]
[334088152,1722754231947,-346.64404401,0.00010997,2]
[334088593,1722754237744,-3742.70217563,0.00010997,2]
[334088594,1722754237756,-110930.24183251,0.00010997,2]
[334088595,1722754237768,-4129.05699686,0.00010997,2]
[334088596,1722754237780,-2658.00651426,0.00010997,2]
[334088597,1722754237791,-7087.97494935,0.00010997,2]
[334088598,1722754237802,-283.16367829,0.00010997,2]
[334088599,1722754237813,-348.90998,0.00010997,2]
[334088600,1722754237824,-290.099993,0.00010997,2]
[334088601,1722754237835,-851.33187589,0.00010997,2]
[334088602,1722754237847,-43108.30251922,0.00010997,2]
[334088603,1722754237869,-360.86093302,0.00010997,2]
[334088604,1722754237881,-2922.29730515,0.00010997,2]
[334088605,1722754237892,-534.02114835,0.00010997,2]
[334088606,1722754237907,-976.96776414,0.00010997,2]
[334088607,1722754237939,-1176.4716405,0.00010997,2]
[334088608,1722754237951,-1659.99434364,0.00010997,2]
[334088609,1722754237963,-2040.00565636,0.00010997,2]
[334088610,1722754237974,-1356.00596654,0.00010997,2]
[334088611,1722754237987,-7272.65439133,0.00010997,2]
[334088612,1722754237998,-1869.7443923,0.00010997,2]
[334088613,1722754238012,-1600.0,0.00010997,2]
[334088614,1722754238024,-2833.8311,0.00010997,2]
[334088623,1722754239930,-1135.63164752,0.00010997,2]
[334088624,1722754239942,-489.23054157,0.00010997,2]
[334088625,1722754239953,-3212.44913101,0.00010997,2]
[334088626,1722754239964,-3088.58400031,0.00010997,2]
[334088627,1722754240155,-787.24931454,0.00010997,2]
[334088628,1722754240167,-1019.52037318,0.00010997,2]
[334088629,1722754240379,-1827.76,0.00010997,2]
[334088630,1722754240390,-412.94802302,0.00010997,2]
[334088631,1722754240402,-27884.4,0.00010997,2]
[334088632,1722754240413,-2936.22,0.00010997,2]
[334088633,1722754240424,-3756.6679994,0.00010997,2]
[334088655,1722754242747,-26.60492091,0.000109,2]
[334088668,1722754244543,-134.06010016,0.000109,2]
[334088669,1722754244552,-219.34990094,0.00010997,2]
[334088670,1722754244572,-5563.71295205,0.00010997,2]
[334088673,1722754246007,-10561.75045407,0.00010997,2]
[334088674,1722754246019,-7537.40414129,0.00010997,2]
[334088675,1722754246046,-475.58623703,0.00010997,2]
[334088679,1722754545468,4588.67923607,0.00018,30]
[334088680,1722754558506,31254.96352493,0.00017,30]
[334088681,1722754559471,175.95,9.542e-05,2]
[334088683,1722754621374,363.69508992,9.542e-05,2]
[334088684,1722754625301,790.38017243,9.542e-05,2]
[334088685,1722754627326,158.97147898,9.542e-05,2]
[334088686,1722754632474,412.8454985,9.542e-05,2]
[334088687,1722754634558,155.0,9.542e-05,2]
[334088688,1722754634719,298.79539896,9.542e-05,2]
[334088689,1722754635093,469.21191987,9.542e-05,2]
[334088690,1722754635715,1373.96583024,9.542e-05,2]
[334088691,1722754639941,7542.29120338,9.542e-05,2]
[334088692,1722754647360,155.38705695,9.542e-05,2]
[334088693,1722754648551,874.10639739,9.542e-05,2]
[334088694,1722754723218,291.34809509,9.542e-05,2]
[334088695,1722754723324,158.87331068,9.542e-05,2]
[334088696,1722754740582,155.0,9.542e-05,2]
[334088698,1722754846568,255.589987,9.542e-05,2]
[334088704,1722755039689,150.86,9.227e-05,2]
[334088710,1722755232994,363.69508992,9.227e-05,2]
[334088712,1722755238467,155.55923325,9.227e-05,2]
[334088713,1722755239420,790.49086952,9.227e-05,2]
[334088715,1722755245595,594.08450703,9.227e-05,2]
[334088753,1722755348760,1370.09326791,9.227e-05,2]
[334088754,1722755359190,176.19,9.475e-05,2]
[334088755,1722755361666,346.819272,0.00027,120]
[334088764,1722755362783,171.46728077,0.00025,60]
[334088769,1722755431872,-613.0,0.000105,5]
[334088770,1722755431882,-337.0,0.00010567,2]
[334088771,1722755431891,-157.03748266,0.00010573,2]
[334088772,1722755431900,-750.0,0.000109,2]
[334088773,1722755431910,-254.5594246,0.000109,2]
[334088774,1722755431919,-1235.70861926,0.000109,2]
[334088775,1722755431928,-651.01011332,0.000109,2]
[334088776,1722755431938,-750.0,0.00010925,2]
[334088777,1722755431947,-633.03266898,0.00010987,2]
[334088778,1722755431956,-150.0,0.00010996,2]
[334088779,1722755431965,-502.01271638,0.00010997,2]
[334088780,1722755432086,-36968.407822,0.00010997,2]
[334088781,1722755432295,-308.06435349,0.00010997,2]
[334088792,1722755437856,-165.072112,0.000109,2]
[334088793,1722755437867,-1504.6116745,0.00010997,2]
[334088794,1722755437878,-314.87644518,0.00010997,2]
[334088795,1722755437937,-28519.78604438,0.00010997,2]
[334088796,1722755438167,-20265.086504,0.00010997,2]
[334088908,1722755441788,-979.2850367,0.00010997,2]
[334088948,1722755444189,-1689.34558321,0.00010997,2]
[334088949,1722755444202,-1747.35,0.00010997,2]
[334088950,1722755444215,-4070.80487874,0.00010997,2]
[334088951,1722755444238,-3008.72418128,0.00010997,2]
[334088952,1722755446512,-496.1217948,0.000109,2]
[334088953,1722755446527,-670.56,0.000109,2]
[334088957,1722755523301,800.0,0.00026986,120]
[334088960,1722755587511,800.0,0.00026986,120]
[334088961,1722755597035,491.19327112,0.000269,120]
[334088962,1722755610110,500.0,0.00027,120]
[334088964,1722755687795,228.8,0.0001337,30]
[334088965,1722755706402,800.0,0.00026986,120]
[334088967,1722755763741,800.0,0.00026986,120]
[334088970,1722755827527,800.0,0.00026986,120]
[334088971,1722755849179,219.45,8.219e-05,2]
[334088973,1722755885859,961.890584,8.219e-05,2]
[334088974,1722755887052,800.0,0.00026986,120]
[334088975,1722755946912,800.0,0.00026986,120]
[334088977,1722756007751,800.0,0.00026986,120]
[334088979,1722756066734,800.0,0.00026986,120]
[334088984,1722756124271,800.0,0.00026986,120]
[334088985,1722756131912,4004.91,9.832e-05,2]
[334088986,1722756151491,250.0,9.869e-05,2]
[334088987,1722756182909,800.0,0.00026986,120]
[334088988,1722756202080,500.0,0.00027,120]
[334088990,1722756208942,176.58,9.841e-05,2]
[334088993,1722756304323,800.0,0.00026986,120]
[334089001,1722756440097,208.47,8.219e-05,2]
[334089003,1722756444645,441.56,9.849e-05,2]
[334089009,1722756498327,159.33,9.762e-05,2]
[334089024,1722756613707,736.04,9.86e-05,2]
[334089025,1722756620765,1000.0,9.875e-05,2]
[334089037,1722756632162,-2962.57694208,9.893e-05,2]
[334089038,1722756632174,-1000.0,9.893e-05,2]
[334089039,1722756632185,-17193.99305792,9.893e-05,2]
[334089040,1722756632194,-3171.16,9.919e-05,2]
[334089041,1722756632206,-200.0,9.931e-05,2]
[334089042,1722756632215,-961.94207214,9.962e-05,2]
[334089043,1722756632225,-169.67,9.965e-05,2]
[334089044,1722756632235,-3055.97,0.0001024,2]
[334089045,1722756632245,-193.95,0.00010336,2]
[334089046,1722756632255,-1801.86,0.00010341,2]
[334089047,1722756632264,-499.99,0.00010341,2]
[334089048,1722756632273,-2542.55,0.00010341,2]
[334089049,1722756632283,-179.04,0.0001038,2]
[334089050,1722756632292,-801.44,0.0001038,2]
[334089051,1722756632301,-900.0,0.000104,3]
[334089052,1722756632311,-208.47,0.0001047,2]
[334089053,1722756632321,-606.64,0.00010476,2]
[334089054,1722756632330,-2519.3,0.00010476,2]
[334089055,1722756632339,-178.97,0.00010476,2]
[334089056,1722756632349,-1049.24619714,0.000105,3]
[334089057,1722756632361,-750.75380286,0.000105,3]
[334089058,1722756632370,-477.36101747,0.000106,3]
[334089059,1722756632381,-2222.63898253,0.000106,3]
[334089060,1722756632390,-3700.0,0.000107,3]
[334089061,1722756632400,-108.49808139,0.00010799,2]
[334089062,1722756632415,-212.24761861,0.00010799,2]
[334089063,1722756632425,-1173.75238139,0.000108,3]
[334089064,1722756632436,-3426.24761861,0.000108,3]
[334089065,1722756632446,-150.0,0.000108,2]
[334089066,1722756632455,-10435.36583033,0.0001088,2]
[334089067,1722756632465,-151.39467,0.00010887,2]
[334089068,1722756632474,-5.82696186,0.0001089,2]
[334089069,1722756632486,-2346.25273814,0.0001089,2]
[334089071,1722756632495,-20976.4934,0.00010897,2]
[334089074,1722756632504,-283.914,0.00010897,2]
[334089077,1722756632514,-9066.2509,0.00010897,2]
[334089080,1722756632523,-15454.45336036,0.00010899,2]
[334089085,1722756632543,-3293.22799159,0.00010899,2]
[334089088,1722756632555,-757.21613236,0.00010899,2]
[334089105,1722756638038,-1010.92811315,0.00010899,2]
[334089106,1722756638228,-835.2869778,0.00010899,2]
[334089107,1722756638240,-500.0,0.000109,2]
[334089108,1722756638250,-1000.0,0.000109,2]
[334089109,1722756638259,-4331.22144185,0.000109,2]
[334089142,1722756640390,-496.07624443,0.000109,2]
[334089143,1722756640457,-1131.59228596,0.000109,2]
[334089144,1722756640633,-28659.08552776,0.000109,2]
[334089145,1722756640643,-944.6003,0.000109,2]
[334089146,1722756640652,-471.90589686,0.000109,2]
[334089147,1722756640662,-170.81662989,0.000109,2]
[334089148,1722756640671,-900.0,0.000109,3]
[334089149,1722756640681,-5283.16084162,0.000109,2]
[334089150,1722756640690,-823.80574616,0.000109,2]
[334089151,1722756640701,-169.70628306,0.000109,2]
[334089152,1722756640710,-250.0,0.00010959,2]
[334089153,1722756640720,-254.89,0.00010963,2]
[334089154,1722756640729,-155.35,0.0001099,2]
[334089155,1722756640739,-155.35,0.0001099,2]
[334089156,1722756640749,-155.35,0.0001099,2]
[334089157,1722756640761,-155.35,0.0001099,2]
[334089158,1722756640771,-155.35,0.0001099,2]
[334089159,1722756640780,-155.35,0.0001099,2]
[334089160,1722756640790,-155.35,0.0001099,2]
[334089161,1722756640800,-38078.98452044,0.00010997,2]
[334089163,1722756640811,-28000.00000099,0.00010997,2]
[334089165,1722756640825,-2352.0797,0.00010997,2]
[334089166,1722756640835,-2352.07971,0.00010997,2]
[334089168,1722756640844,-2352.07971,0.00010997,2]
[334089170,1722756640854,-2352.07971,0.00010997,2]
[334089172,1722756640864,-2352.0797,0.00010997,2]
[334089174,1722756640874,-210.68434848,0.00010999,2]
[334089175,1722756640883,-5950.2341632,0.00010999,2]
[334089177,1722756640892,-500.0,0.00010999,2]
[334089179,1722756640901,-540.95516575,0.00010999,2]
[334089180,1722756640911,-611.14201814,0.00010999,2]
[334089181,1722756640920,-3034960.81105633,0.00011,2]
[334089182,1722756640929,-534.4,0.00011,2]
[334089183,1722756640939,-151.0,0.00011,2]
[334089184,1722756640949,-151.0,0.00011,2]
[334089185,1722756640959,-151.0,0.00011,2]
[334089186,1722756640969,-151.0,0.00011,2]
[334089188,1722756640978,-340.627371,0.00011,2]
[334089189,1722756640987,-340.627371,0.00011,2]
[334089191,1722756640997,-151.0,0.00011,2]
[334089193,1722756641007,-151.0,0.00011,2]
[334089194,1722756641016,-151.0,0.00011,2]
[334089195,1722756641026,-235.037312,0.00011,2]
[334089196,1722756641035,-235.037312,0.00011,2]
[334089197,1722756641044,-151.0,0.00011,2]
[334089198,1722756641054,-151.0,0.00011,2]
[334089199,1722756641068,-151.0,0.00011,2]
[334089200,1722756641077,-154.691468,0.00011,2]
[334089201,1722756641087,-151.0,0.00011,2]
[334089202,1722756641096,-151.0,0.00011,2]
[334089203,1722756641106,-172.245361,0.00011,2]
[334089204,1722756641116,-151.0,0.00011,2]
[334089205,1722756641125,-172.245361,0.00011,2]
[334089206,1722756641136,-151.0,0.00011,2]
[334089207,1722756641145,-151.0,0.00011,2]
[334089208,1722756641155,-616.57983,0.00011,2]
[334089209,1722756641169,-616.57983,0.00011,2]
[334089210,1722756641179,-1762953.86170484,0.00011,2]
[334089221,1722756643136,-3799.94475853,0.00011,2]
[334089225,1722756643424,-143900.0,0.00011,2]
[334089229,1722756646418,-515.25,0.00011,2]
[334089230,1722756646431,-3332.56392,0.00011,2]
[334089231,1722756646453,-357.53001,0.00011,2]
[334089232,1722756646467,-828.26264871,0.00011,2]
[334089233,1722756646480,-1696.99999999,0.00011,2]
[334089234,1722756646525,-3620.68944261,0.00011,2]
[334089235,1722756646598,-1221.72,0.00011,2]
[334089236,1722756646610,-456.80005735,0.00011,2]
[334089237,1722756646670,-1408.82174182,0.00011,2]
[334089238,1722756646740,-274.95905529,0.00011,2]
[334089240,1722756646752,-3461.43083766,0.00011,2]
[334089244,1722756804204,500.0,0.00025758,120]
[334089248,1722756965317,235.88,8.713e-05,2]
[334089257,1722756984916,4375.76180898,8.713e-05,2]
[334089259,1722757040264,160.06,8.19e-05,2]
[334089299,1722757097745,166.43863397,0.00027,120]
[334089310,1722757159696,209.73,0.0001337,30]
[334089329,1722757444601,800.0,0.00026986,120]
[334089330,1722757450605,224.08,8.219e-05,2]
[334089482,1722757736378,250.0,9.857e-05,2]
[334089492,1722757832162,-293.95,9.904e-05,2]
[334089494,1722757832171,-242.44,9.92e-05,2]
[334089496,1722757832181,-203.91,9.929e-05,2]
[334089498,1722757832191,-542.76,9.935e-05,2]
[334089500,1722757832201,-161.08581354,9.942e-05,2]
[334089503,1722757832233,-66.85418646,9.942e-05,2]
[334089505,1722757832243,-800.0,9.949e-05,2]
[334089506,1722757832252,-200.0,0.0001007,2]
[334089507,1722757832261,-400.0,0.00010206,2]
[334089508,1722757832270,-1789.89127977,0.00010206,2]
[334089509,1722757832280,-1144.29872023,0.00010206,2]
[334089510,1722757832289,-172.75,0.00010219,2]
[334089511,1722757832298,-164.22,0.00010276,2]
[334089512,1722757832307,-300.0,0.00010479,2]
[334089513,1722757832316,-224.08,0.0001048,2]
[334089514,1722757832326,-155.08755846,0.00010561,2]
[334089515,1722757832334,-3403.4070806,0.00010561,2]
[334089516,1722757832344,-499.99,0.00010561,2]
[334089517,1722757832352,-999.99,0.00010798,2]
[334089518,1722757832361,-1079.7779,0.00010799,2]
[334089519,1722757832371,-2010.13213,0.0001089,2]
[334089520,1722757832380,-299.99,0.00010897,2]
[334089521,1722757832389,-500.0,0.00010897,2]
[334089522,1722757832398,-1000.0,0.00010897,2]
[334089523,1722757832407,-150.0,0.00010898,2]
[334089524,1722757832417,-22958.87378951,0.00010899,2]
[334089525,1722757832428,-1416.58160874,0.00010899,2]
[334089526,1722757832438,-2779.51839126,0.000109,2]
[334089527,1722757832454,-1022.98488966,0.000109,2]
[334089528,1722757832468,-14355.45898269,0.000109,2]
[334089529,1722757832479,-16194.71121578,0.000109,2]
[334089530,1722757832499,-643.18714077,0.000109,2]
[334089531,1722757832512,-3394.36268549,0.000109,2]
[334089532,1722757832523,-300.3,0.000109,2]
[334089533,1722757832535,-436.64173545,0.000109,2]
[334089534,1722757832546,-1826.2110589,0.000109,2]
[334089535,1722757832555,-594.45963608,0.000109,2]
[334089536,1722757832571,-261.15578167,0.000109,2]
[334089537,1722757832585,-3223.35,0.000109,2]
[334089538,1722757832596,-454.2225082,0.000109,2]
[334089540,1722757832608,-1189.73079971,0.000109,2]
[334089542,1722757832633,-775.19666386,0.000109,2]
[334089543,1722757832644,-1638.14469322,0.000109,2]
[334089544,1722757832658,-341.34701288,0.000109,2]
[334089545,1722757832671,-1000.37172,0.000109,2]
[334089546,1722757832682,-312.75876885,0.000109,2]
[334089547,1722757832702,-5438.39379598,0.000109,2]
[334089548,1722757832713,-281.19172138,0.000109,2]
[334089550,1722757832728,-251.88644517,0.000109,2]
[334089552,1722757832739,-3324.45,0.000109,2]
[334089554,1722757832763,-80913.340453,0.000109,2]
[334089556,1722757832773,-14140.1848,0.000109,2]
[334089557,1722757832782,-49182.768,0.000109,2]
[334089559,1722757832792,-153.87477486,0.000109,2]
[334089561,1722757832801,-170.81662989,0.000109,2]
[334089562,1722757832810,-514.97763814,0.000109,2]
[334089564,1722757832819,-783.74248309,0.000109,2]
[334089566,1722757832828,-1500.0,0.00010959,5]
[334089567,1722757832837,-155.35,0.0001099,2]
[334089569,1722757832847,-165.42600709,0.00010997,2]
[334089570,1722757832856,-210.68434848,0.00010999,2]
[334089571,1722757832865,-5950.2341632,0.00010999,2]
[334089572,1722757832875,-642.0,0.00011,2]
[334089573,1722757832884,-511136.32337281,0.00011,2]
[334089574,1722757832895,-12562.91561287,0.00011,2]
[334089575,1722757832906,-14550.17293125,0.00011,2]
[334089576,1722757832917,-45722.39162235,0.00011,2]
[334089577,1722757832929,-6713.97635162,0.00011,2]
[334089578,1722757832940,-1156.33265656,0.00011,2]
[334089582,1722757838224,-210.68434848,0.00010999,2]
[334089583,1722757838234,-463.69756464,0.00010999,2]
[334089584,1722757838244,-28048.43223998,0.00011,2]
[334089585,1722757838863,-1173.65274454,0.00011,2]
[334089586,1722757839253,-1321.53103171,0.00011,2]
[334089587,1722757839264,-426.35735425,0.00011,2]
[334089588,1722757839276,-590.05754824,0.00011,2]
[334089589,1722757839287,-1118.64598073,0.00011,2]
[334089630,1722757840430,-4112.87853256,0.00011,2]
[334089631,1722757840441,-36952.32646455,0.00011,2]
[334089632,1722757840484,-587.46169813,0.00011,2]
[334089633,1722757840495,-1259.96086,0.00011,2]
[334089634,1722757840506,-232628.18132993,0.00011,2]
[334089635,1722757840515,-750.77701274,0.00011,2]
[334089636,1722757840524,-151.0,0.00011,2]
[334089637,1722757840534,-1000.0,0.00011,2]